fUST/lending_fUST_20260405
["ID","MTS","AMOUNT","RATE_DAILY","PERIOD"]
[419771412,1775369445416,-4888.693498,0.00021918,2]
[419771414,1775369445425,-4888.693498,0.00021918,2]
[419771416,1775369445434,-4888.693498,0.00021918,2]
[419771418,1775369445443,-4888.693498,0.00021918,2]
[419771420,1775369445453,-4888.693498,0.00021918,2]
[419771422,1775369445463,-4888.693498,0.00021918,2]
[419771424,1775369445472,-4888.693498,0.00021918,2]
[419771426,1775369445481,-4888.693498,0.00021918,2]
[419771428,1775369445491,-4888.693498,0.00021918,2]
[419771430,1775369445500,-4888.693498,0.00021918,2]
[419771431,1775369445510,-4888.693498,0.00021918,2]
[419771433,1775369445521,-4888.693498,0.00021918,2]
[419771435,1775369445530,-4888.693498,0.00021918,2]
[419771437,1775369445540,-4888.693498,0.00021918,2]
[419771439,1775369445549,-4888.693498,0.00021918,2]
[419771441,1775369445559,-4888.693498,0.00021918,2]
[419771443,1775369445568,-4888.693498,0.00021918,2]
[419771445,1775369445577,-4888.693498,0.00021918,2]
[419771447,1775369445587,-4888.693498,0.00021918,2]
[419771449,1775369445597,-4888.693498,0.00021918,2]
[419771451,1775369445606,-357.556427,0.00021918,2]
[419771453,1775369445615,-357.556427,0.00021918,2]
[419771463,1775369445705,-151.0,0.00021918,2]
[419771465,1775369445721,-151.0,0.00021918,2]
[419771467,1775369445730,-151.0,0.00021918,2]
[419771468,1775369445739,-151.0,0.00021918,2]
[419771470,1775369445748,-357.556427,0.00021918,2]
[419771472,1775369445757,-151.0,0.00021918,2]
[419771474,1775369445766,-357.556427,0.00021918,2]
[419771476,1775369445776,-154.991215,0.00021918,2]
[419771478,1775369445786,-357.556427,0.00021918,2]
[419771480,1775369445795,-357.556427,0.00021918,2]
[419771482,1775369445805,-357.556427,0.00021918,2]
[419771484,1775369445814,-2000.0,0.00021918,7]
[419771486,1775369445823,-151.0,0.00021918,2]
[419771488,1775369445833,-500.0,0.00021918,2]
[419771490,1775369445842,-257.75913792,0.00021918,2]
[419771492,1775369445851,-151.0,0.00021949,2]
[419771494,1775369445860,-307.59604079,0.00021949,2]
[419771496,1775369445871,-621.78829552,0.00021949,2]
[419771498,1775369445880,-2487.15318209,0.00021949,2]
[419771500,1775369445890,-500.0,0.00021973,2]
[419771502,1775369445899,-500.0,0.00021973,2]
[419771504,1775369445908,-150.84031134,0.00021973,2]
[419771506,1775369445918,-500.0,0.00021973,2]
[419771508,1775369445927,-231.0,0.00022,7]
[419771510,1775369445937,-500.0,0.00022,2]
[419771512,1775369445946,-928309.37640385,0.00022,2]
[419771541,1775369446191,-1150.2198193,0.00020186,2]
[419771543,1775369446200,-160.0,0.00020543,7]
[419771545,1775369446210,-357.556427,0.00021918,2]
[419771547,1775369446219,-357.556427,0.00021918,2]
[419771549,1775369446228,-357.556427,0.00021918,2]
[419771551,1775369446237,-357.556427,0.00021918,2]
[419771553,1775369446246,-357.556427,0.00021918,2]
[419771555,1775369446255,-357.556427,0.00021918,2]
[419771557,1775369446264,-357.556427,0.00021918,2]
[419771559,1775369446273,-26658.77737521,0.00022,2]
[419771616,1775369446822,-832.672263,0.00020543,7]
[419771617,1775369446832,-1505.344527,0.00020543,7]
[419771618,1775369446842,-1135.462177,0.0002157,7]
[419771619,1775369446851,-357.556427,0.00021918,2]
[419771620,1775369446860,-5.95121598,0.00021918,2]
[419771637,1775369447088,-351.60521102,0.00021918,2]
[419771639,1775369447098,-357.556427,0.00021918,2]
[419771641,1775369447107,-357.556427,0.00021918,2]
[419771643,1775369447116,-357.556427,0.00021918,2]
[419771645,1775369447126,-357.556435,0.00021918,2]
[419771647,1775369447135,-151.0,0.00021918,2]
[419771649,1775369447144,-217.90670372,0.00021918,2]
[419772742,1775370225532,164.4154927,7.222e-05,2]
[419772772,1775370633987,-300.0,0.00011779,2]
[419772773,1775370633997,-2593.64792449,0.0001178,2]
[419772774,1775370634042,-859.11990399,0.0001178,2]
[419772775,1775370634055,-1547.23217152,0.0001178,2]
[419772776,1775370634065,-586.0,0.0001178,2]
[419772777,1775370634075,-292.57613176,0.00011899,2]
[419772778,1775370634086,-399.86526697,0.00011899,2]
[419772855,1775370641545,-4307.55860127,0.00011899,2]
[419772857,1775370641556,-1130.29265018,0.00012019,2]
[419772860,1775370641567,-420.0,0.00012934,2]
[419772862,1775370641578,-2027.0533749,0.00012989,2]
[419772864,1775370641588,-112.01386938,0.00013694,2]
[419773057,1775370643732,-499.1006599,0.00013694,2]
[419774287,1775370700108,-646.20785618,0.00013421,2]
[419774293,1775370745861,1118.55,0.0003482,120]
[419774294,1775370746095,1118.55,0.0003482,120]
[419774295,1775370746319,1118.55,0.0003482,120]
[419774296,1775370752451,1118.55,0.0003482,120]
[419774297,1775370752585,1118.55,0.0003482,120]
[419774298,1775370752807,1118.55,0.0003482,120]
[419774299,1775370753024,1118.55,0.0003482,120]
[419774300,1775370753248,1118.55,0.0003482,120]
[419774301,1775370753476,1118.55,0.0003482,120]
[419774302,1775370753711,1118.55,0.0003482,120]
[419774303,1775370753936,1118.55,0.0003482,120]
[419774304,1775370754161,1118.55,0.0003482,120]
[419774305,1775370754379,1118.55,0.0003482,120]
[419774306,1775370754602,1118.55,0.0003482,120]
[419774307,1775370754844,1118.55,0.0003482,120]
[419774308,1775370755352,1118.55,0.0003482,120]
[419774309,1775370755390,1118.55,0.0003482,120]
[419774310,1775370755588,1118.55,0.0003482,120]
[419774311,1775370755724,1118.55,0.0003482,120]
[419774312,1775370755955,1118.55,0.0003482,120]
[419774313,1775370756214,1118.55,0.0003482,120]
[419774314,1775370756432,1118.55,0.0003482,120]
[419774315,1775370756648,1118.55,0.0003482,120]
[419774316,1775370756864,1118.6977885,0.0003482,120]
[419774317,1775370884162,262.76051524,0.0003482,120]
[419774318,1775370884445,262.76051524,0.0003482,120]
[419774319,1775370884731,262.76051524,0.0003482,120]
[419774320,1775370885007,262.76051524,0.0003482,120]
[419774321,1775370885346,262.76051524,0.0003482,120]
[419774322,1775370885685,262.76051524,0.0003482,120]
[419774323,1775370886007,262.76051524,0.0003482,120]
[419774325,1775371004009,262.76051522,0.0003482,120]
[419774341,1775371216918,1052.12352713,0.00032876,120]
[419774345,1775371447580,771.5,0.00032876,120]
[419774346,1775371499733,221.0312,0.00034821,120]
[419774347,1775371524373,834.37,0.00034821,120]
[419774348,1775371524595,834.37,0.00034821,120]
[419774349,1775371524830,834.37,0.00034821,120]
[419774350,1775371525062,834.37,0.00034821,120]
[419774351,1775371525284,834.37,0.00034821,120]
[419774352,1775371525518,834.37,0.00034821,120]
[419774353,1775371525743,834.37,0.00034821,120]
[419774354,1775371525968,834.37,0.00034821,120]
[419774355,1775371526200,834.37,0.00034821,120]
[419774356,1775371526427,834.37,0.00034821,120]
[419774357,1775371526686,834.37,0.00034821,120]
[419774358,1775371526924,834.37,0.00034821,120]
[419774359,1775371527147,834.37,0.00034821,120]
[419774360,1775371527376,834.37,0.00034821,120]
[419774361,1775371527639,834.37,0.00034821,120]
[419774362,1775371527859,834.37,0.00034821,120]
[419774363,1775371528112,834.37,0.00034821,120]
[419774364,1775371528354,834.37,0.00034821,120]
[419774365,1775371528640,834.37,0.00034821,120]
[419774366,1775371528880,834.37,0.00034821,120]
[419774367,1775371529112,834.37,0.00034821,120]
[419774368,1775371529335,834.37,0.00034821,120]
[419774369,1775371529649,834.37,0.00034821,120]
[419774370,1775371529912,834.45718356,0.00034821,120]
[419774371,1775371610150,1224.0,0.00034821,120]
[419774372,1775371799652,2054.79970295,0.00034821,120]
[419774402,1775371831720,-615.0,0.00013693,2]
[419774404,1775371831729,-300.0,0.00013693,2]
[419774406,1775371831738,-170.99075661,0.00013693,2]
[419774408,1775371831749,-20.00924339,0.00013693,2]
[419774410,1775371831760,-3978.89463488,0.00013694,2]
[419774412,1775371831769,-300.0,0.00013694,2]
[419774413,1775371831778,-300.0,0.00013694,2]
[419774414,1775371831787,-300.0,0.00013694,2]
[419774415,1775371831796,-300.0,0.00013694,2]
[419774416,1775371831806,-300.0,0.00013694,2]
[419774417,1775371831815,-300.0,0.00013694,2]
[419774418,1775371831824,-300.0,0.00013694,2]
[419774419,1775371831833,-300.0,0.00013694,2]
[419774420,1775371831841,-300.0,0.00013694,2]
[419774423,1775371831850,-300.0,0.00013694,2]
[419774424,1775371831860,-300.0,0.00013694,2]
[419774427,1775371831869,-300.0,0.00013694,2]
[419774430,1775371831878,-300.0,0.00013694,2]
[419774433,1775371831888,-300.0,0.00013694,2]
[419774435,1775371831897,-300.0,0.00013694,2]
[419774437,1775371831906,-156.0,0.00013699,2]
[419774439,1775371831916,-1000.0,0.00013699,2]
[419774441,1775371831925,-600.0,0.00013967,2]
[419774443,1775371831934,-995.67991717,0.00014175,2]
[419774445,1775371831943,-420.0,0.00015006,2]
[419774447,1775371831952,-218.81639683,0.00015312,2]
[419774449,1775371831960,-170.22170177,0.00015312,2]
[419774451,1775371831970,-720.0,0.00015364,2]
[419774452,1775371831979,-285.752827,0.00016426,2]
[419774454,1775371831987,-636.48087971,0.00016468,2]
[419774537,1775371837938,-363.51912029,0.00016468,2]
[419774539,1775371837947,-864.0,0.000169,2]
[419774541,1775371837956,-189.884488,0.00017374,2]
[419774543,1775371837965,-334.33315996,0.0001859,2]
[419775133,1775371846303,-493.29752038,0.00019101,2]
[419775140,1775371846360,-1818.32322535,0.00019101,2]
[419775623,1775372205271,500.0,0.00034821,120]
[419775624,1775372205510,500.0,0.00034821,120]
[419775625,1775372206074,500.0,0.00034821,120]
[419775626,1775372206309,500.0,0.00034821,120]
[419775627,1775372206560,500.0,0.00034821,120]
[419775628,1775372206793,500.0,0.00034821,120]
[419775629,1775372207020,500.0,0.00034821,120]
[419775630,1775372207243,214.69052006,0.00034821,120]
[419775635,1775372500408,-1093.0,0.00013024,2]
[419775636,1775372500437,-605.0,0.00013024,2]
[419775637,1775372500467,-1200.0,0.00013697,2]
[419775638,1775372500528,-738.385013,0.00013698,2]
[419775639,1775372526837,500.0,0.00034828,120]
[419775640,1775372527062,504.62366796,0.00034828,120]
[419775641,1775372529504,-2898.0,0.00013698,2]
[419775643,1775372706718,205.58763608,0.00034828,120]
[419775691,1775373031898,-384.768375,0.00013698,2]
[419775774,1775373038304,-342.63450499,0.00013698,2]
[419775788,1775373040721,11728.56,0.00034828,120]
[419775791,1775373040968,-2680.22296611,0.00013698,2]
[419775792,1775373041099,-297.1742526,0.00013698,2]
[419775793,1775373041137,-615.0,0.00013698,2]
[419775794,1775373041147,-1000.0,0.00013699,2]
[419775795,1775373041157,-1531.34363095,0.00013971,2]
[419775796,1775373041166,-1.88445694,0.00013971,2]
[419775804,1775373043412,-298.11554306,0.00013971,2]
[419775805,1775373043422,-300.0,0.00013971,2]
[419775806,1775373043431,-300.0,0.00013971,2]
[419775807,1775373043440,-300.0,0.00013971,2]
[419775808,1775373043450,-300.0,0.00013971,2]
[419775809,1775373043460,-300.0,0.00013971,2]
[419775810,1775373043469,-300.0,0.00013971,2]
[419775811,1775373043479,-300.0,0.00013971,2]
[419775812,1775373043489,-57.26814828,0.00013971,2]
[419775826,1775373046339,-242.73185172,0.00013971,2]
[419775827,1775373046348,-300.0,0.00013971,2]
[419775828,1775373046358,-300.0,0.00013971,2]
[419775829,1775373046367,-300.0,0.00013971,2]
[419775830,1775373046377,-300.0,0.00013971,2]
[419775831,1775373046386,-300.0,0.00013971,2]
[419775832,1775373046395,-300.0,0.00013971,2]
[419775833,1775373046404,-152.6576426,0.00013986,2]
[419775834,1775373046413,-367.3406556,0.00013986,2]
[419775835,1775373046422,-604.1225749,0.00013986,2]
[419775836,1775373046431,-600.0,0.00014249,2]
[419775837,1775373046440,-297.1742526,0.00015331,2]
[419775838,1775373046449,-7044.0108591,0.00015523,2]
[419775839,1775373046458,-720.0,0.00015674,2]
[419775840,1775373046467,-604.1225749,0.00015792,2]
[419775841,1775373046476,-367.3406556,0.00016199,2]
[419775842,1775373046485,-297.1742526,0.00016965,2]
[419775843,1775373046494,-864.0,0.00017242,2]
[419775844,1775373046503,-7044.0108591,0.00017348,2]
[419775845,1775373046512,-604.1225749,0.00017598,2]
[419775846,1775373046522,-5383.18705061,0.00017752,2]
[419775847,1775373046531,-730.79604395,0.00017852,2]
[419775848,1775373046540,-1140.72694985,0.00017852,2]
[419775849,1775373046549,-863.68614305,0.00017852,2]
[419775850,1775373046558,-1348.16008892,0.00017852,2]
[419775851,1775373046567,-367.3406556,0.00018413,2]
[419775852,1775373046576,-500.18108805,0.00018456,2]
[419775853,1775373046585,-297.1742526,0.00018598,2]
[419775854,1775373046594,-927.12770421,0.00018792,2]
[419775855,1775373046603,-160.0,0.000188,2]
[419775856,1775373046612,-1000.0,0.00018966,2]
[419775857,1775373046621,-160.0,0.00019,2]
[419775858,1775373046630,-25.48756657,0.00019101,2]
[419775859,1775373046639,-7044.0108591,0.00019174,2]
[419775860,1775373046648,-604.1225749,0.00019404,2]
[419775861,1775373046657,-180.58779787,0.00019573,2]
[419775862,1775373046667,-5383.18705057,0.00019664,2]
[419775863,1775373046676,-1200.74567522,0.0002,2]
[419775864,1775373046685,-367.3406556,0.00020626,2]
[419775865,1775373046695,-166.32862087,0.00020805,2]
[419775866,1775373046704,-168.3888056,0.00020805,2]
[419775867,1775373046713,-151.0,0.00020805,2]
[419775868,1775373046722,-557.5788265,0.00020805,2]
[419775869,1775373046731,-557.5788265,0.00020805,2]
[419775870,1775373046740,-2230.315306,0.00020805,2]
[419775871,1775373046749,-578.20924308,0.0002086,2]
[419775872,1775373046759,-1000.0,0.00020863,2]
[419775873,1775373046768,-244.0,0.00020863,2]
[419775874,1775373046777,-581.36284531,0.00020915,2]
[419775875,1775373046786,-500.0,0.00020973,2]
[419775876,1775373046796,-500.0,0.00020973,2]
[419775877,1775373046805,-647.44909379,0.00020982,2]
[419775878,1775373046814,-802.83105685,0.00020983,2]
[419775879,1775373046823,-500.0,0.00020983,2]
[419775880,1775373046833,-311.7877272,0.00020983,2]
[419775881,1775373046842,-802.83105685,0.00020983,2]
[419775882,1775373046851,-500.0,0.00020983,2]
[419775883,1775373046860,-802.83105685,0.00020983,2]
[419775884,1775373046870,-500.0,0.00020983,2]
[419775885,1775373046879,-802.83105685,0.00020983,2]
[419775886,1775373046888,-168.73455277,0.00020983,2]
[419775887,1775373046897,-802.83105685,0.00020983,2]
[419775888,1775373046906,-802.83105685,0.00020983,2]
[419775889,1775373046915,-500.0,0.00020983,2]
[419775890,1775373046924,-500.0,0.00020983,2]
[419775891,1775373046933,-500.0,0.00020983,2]
[419775892,1775373046943,-802.83105685,0.00020983,2]
[419775893,1775373046953,-500.0,0.00020983,2]
[419775894,1775373046962,-802.83105685,0.00020983,2]
[419775895,1775373046971,-500.0,0.00020983,2]
[419775896,1775373046980,-500.0,0.00020983,2]
[419775897,1775373046988,-802.83105685,0.00020983,2]
[419775898,1775373046998,-500.0,0.00020983,2]
[419775899,1775373047007,-802.83105685,0.00020983,2]
[419775900,1775373047016,-500.0,0.00020983,2]
[419775901,1775373047025,-802.83105685,0.00020983,2]
[419775902,1775373047034,-500.0,0.00020983,2]
[419775903,1775373047043,-802.83105685,0.00020983,2]
[419775904,1775373047053,-802.83105685,0.00020983,2]
[419775905,1775373047063,-802.83105685,0.00020983,2]
[419775906,1775373047071,-802.83105685,0.00020983,2]
[419775907,1775373047080,-802.83105685,0.00020983,2]
[419775908,1775373047089,-802.83105685,0.00020983,2]
[419775909,1775373047098,-802.83105685,0.00020983,2]
[419775910,1775373047107,-500.0,0.00020983,2]
[419775911,1775373047116,-802.83105685,0.00020983,2]
[419775912,1775373047125,-500.0,0.00020983,2]
[419775913,1775373047134,-2195.568412,0.00020983,2]
[419775914,1775373047143,-2195.568412,0.00020983,2]
[419775915,1775373047152,-2195.568412,0.00020983,2]
[419775916,1775373047161,-500.0,0.00020983,2]
[419775917,1775373047170,-2195.568412,0.00020983,2]
[419775918,1775373047179,-500.0,0.00020983,2]
[419775919,1775373047188,-2195.568412,0.00020983,2]
[419775920,1775373047197,-2195.568412,0.00020983,2]
[419775921,1775373047206,-2195.568412,0.00020983,2]
[419775922,1775373047215,-285.0,0.00020983,2]
[419775923,1775373047224,-2195.568412,0.00020983,2]
[419775924,1775373047233,-80160.75456561,0.00020984,2]
[419775925,1775373047249,-4132.80713712,0.00020984,2]
[419775926,1775373047259,-569.37999998,0.00020984,2]
[419775927,1775373047271,-907.88036448,0.00020984,2]
[419775928,1775373047281,-10116.51081464,0.00020984,2]
[419775931,1775373166436,1303.6,0.000309,120]
[419775932,1775373167091,1303.6,0.000319,120]
[419775934,1775373250953,500.0,0.0003287,120]
[419775935,1775373260744,600.0,0.0003287,120]
[419775937,1775373336722,833.33,0.00034821,120]
[419775938,1775373336956,833.33,0.00034821,120]
[419775939,1775373337175,833.33,0.00034821,120]
[419775940,1775373337389,763.88,0.00034821,120]
[419775941,1775373337445,833.33,0.00034821,120]
[419775942,1775373337601,763.88,0.00034821,120]
[419775943,1775373337669,833.33,0.00034821,120]
[419775944,1775373337926,833.33,0.00034821,120]
[419775945,1775373338150,833.33,0.00034821,120]
[419775946,1775373338404,833.33,0.00034821,120]
[419775947,1775373338706,833.33,0.00034821,120]
[419775948,1775373338948,833.33,0.00034821,120]
[419775949,1775373339169,833.33,0.00034821,120]
[419775950,1775373339856,763.88,0.00034821,120]
[419775951,1775373339884,833.33,0.00034821,120]
[419775952,1775373340091,833.33,0.00034821,120]
[419775953,1775373340153,763.88,0.00034821,120]
[419775954,1775373340306,833.33,0.00034821,120]
[419775955,1775373340424,763.88,0.00034821,120]
[419775956,1775373340523,833.33,0.00034821,120]
[419775957,1775373340648,763.88,0.00034821,120]
[419775958,1775373340741,833.33,0.00034821,120]
[419775959,1775373340865,763.88,0.00034821,120]
[419775960,1775373340959,833.33,0.00034821,120]
[419775969,1775373800011,5487.0,0.00034821,120]
[419775970,1775373812175,5000.0,0.00034821,120]
[419775971,1775373835565,5000.0,0.00034821,120]
[419775972,1775373848272,3812.22935489,0.00034821,120]
[419775982,1775374218483,486.23,0.00034821,120]
[419776030,1775374238377,-180.70123784,0.00012603,2]
[419776031,1775374238387,-598.0,0.00012603,2]
[419776032,1775374238397,-180.70123784,0.00012855,7]
[419776033,1775374238407,-446.15747242,0.00013699,2]
[419776051,1775374241023,-553.84252758,0.00013699,2]
[419776052,1775374241035,-2027.0533749,0.00017818,2]
[419776053,1775374241048,-300.0,0.00017851,2]
[419776054,1775374241061,-171.0,0.00017851,2]
[419776055,1775374241074,-157.66668044,0.00017852,2]
[419776056,1775374241084,-283.80002479,0.00017852,2]
[419776057,1775374241097,-504.53337741,0.00017852,2]
[419776058,1775374241108,-787.54506879,0.00017852,2]
[419776059,1775374241120,-285.7528279,0.00018046,2]
[419776060,1775374241131,-1000.0,0.00018517,2]
[419776061,1775374241142,-5274.5758529,0.00018527,2]
[419776248,1775374243481,-2857.5548354,0.00018527,2]
[419776251,1775374243494,-695.0,0.00018527,2]
[419776253,1775374243506,-300.0,0.00019509,2]
[419776255,1775374243518,-300.0,0.00019509,2]
[419776258,1775374243529,-300.0,0.00019509,2]
[419776260,1775374243541,-300.0,0.00019509,2]
[419776262,1775374243552,-300.0,0.00019509,2]
[419776264,1775374243563,-300.0,0.00019509,2]
[419776267,1775374243574,-300.0,0.00019509,2]
[419776269,1775374243585,-300.0,0.00019509,2]
[419776271,1775374243596,-300.0,0.00019509,2]
[419776273,1775374243607,-121.3442288,0.00019509,2]
[419776548,1775374246461,-178.6557712,0.00019509,2]
[419776551,1775374246472,-300.0,0.00019509,2]
[419776553,1775374246484,-300.0,0.00019509,2]
[419776555,1775374246495,-300.0,0.00019509,2]
[419776557,1775374246506,-300.0,0.00019509,2]
[419776559,1775374246517,-300.0,0.00019509,2]
[419776562,1775374246529,-2230.315306,0.0002046,2]
[419776564,1775374246540,-1230.2669511,0.000205,2]
[419778119,1775374323345,204.19543534,0.00034821,120]
[419778214,1775375105376,224.0,0.0003,120]
[419778220,1775375229996,500.0,0.00034821,120]
[419778221,1775375230212,505.591287,0.00034821,120]
[419778283,1775375438569,-360.96841169,0.00013233,14]
[419778284,1775375438579,-300.0,0.00013361,2]
[419778285,1775375438588,-610.0,0.00013361,2]
[419778286,1775375438597,-132.37256033,0.00013361,2]
[419778287,1775375438622,-1067.62743967,0.00013361,2]
[419778289,1775375438632,-300.0,0.00013362,2]
[419778290,1775375438640,-300.0,0.00013362,2]
[419778291,1775375438650,-300.0,0.00013362,2]
[419778293,1775375438659,-300.0,0.00013362,2]
[419778295,1775375438668,-300.0,0.00013362,2]
[419778296,1775375438677,-300.0,0.00013362,2]
[419778297,1775375438686,-300.0,0.00013362,2]
[419778298,1775375438695,-123.46202377,0.00013362,2]
[419778429,1775375441826,-176.53797623,0.00013362,2]
[419778431,1775375441837,-282.80965571,0.00013362,2]
[419778872,1775375446686,-17.19034429,0.00013362,2]
[419778874,1775375446695,-300.0,0.00013362,2]
[419778876,1775375446705,-300.0,0.00013362,2]
[419778878,1775375446714,-300.0,0.00013362,2]
[419778880,1775375446724,-300.0,0.00013362,2]
[419778882,1775375446733,-300.0,0.00013362,2]
[419778884,1775375446743,-300.0,0.00013362,2]
[419778886,1775375446752,-1000.0,0.00013699,2]
[419778888,1775375446761,-1011.60080757,0.00014175,2]
[419778890,1775375446770,-1969.62168498,0.00015836,2]
[419778892,1775375446779,-2219.48363493,0.00017496,2]
[419778893,1775375446789,-163.085672,0.00017686,2]
[419778895,1775375446798,-361.97446912,0.00017845,2]
[419778916,1775375446991,-238.02553088,0.00017845,2]
[419778917,1775375447000,-2374.66332542,0.00019157,2]
[419778920,1775375447011,-720.0,0.00019629,2]
[419778922,1775375447022,-176.435346,0.00019673,2]
[419778923,1775375447031,-2230.315306,0.00019977,2]
[419778925,1775375447040,-325.0648973,0.00019979,2]
[419778927,1775375447049,-581.07805689,0.00020246,2]
[419780640,1775375681018,1647.5,0.000309,120]
[419780641,1775375681303,1647.5,0.000319,120]
[419780642,1775375690739,2034.75335695,0.00034821,120]
[419780684,1775375895177,500.0,0.00034821,120]
[419780697,1775376099737,-500.0,0.00013561,2]
[419780698,1775376099763,-270.26202494,0.00013561,2]
[419780699,1775376099788,-300.0,0.00013693,2]
[419780700,1775376099815,-1200.0,0.00013693,2]
[419780701,1775376099841,-109.42960326,0.00013698,2]
[419780702,1775376099854,-190.57039674,0.00013698,2]
[419780703,1775376099863,-309.42960326,0.00013699,2]
[419780704,1775376099873,-270.26202494,0.00013699,2]
[419780705,1775376099884,-300.0,0.00013699,2]
[419780706,1775376099895,-120.3083718,0.00013699,2]
[419780707,1775376099904,-300.0,0.00013967,2]
[419780708,1775376099913,-300.0,0.00013967,2]
[419780709,1775376099923,-300.0,0.00013967,2]
[419780710,1775376099932,-179.6916282,0.00013967,2]
[419780711,1775376099943,-120.3083718,0.00013967,2]
[419780712,1775376099952,-179.6916282,0.00013967,2]
[419780719,1775376150785,200.0,0.00030479,120]
[419780735,1775376210764,200.0,0.00032717,120]
[419780790,1775376600830,8043.72736827,7e-05,2]
[419780810,1775376632544,-324.331139,0.00013699,2]
[419780841,1775376638795,-675.668861,0.00013699,2]
[419780843,1775376638805,-10119.517278,0.00014245,2]
[419781210,1775376643988,-3166.47645286,0.00014245,2]
[419781213,1775376643999,-1275.38190145,0.00014245,2]
[419781215,1775376644011,-1178.09661805,0.00014245,2]
[419781217,1775376644021,-300.0,0.00014245,2]
[419781219,1775376644031,-300.0,0.00014245,2]
[419781221,1775376644041,-110.80666406,0.00014245,2]
[419781470,1775376646775,-189.19333594,0.00014245,2]
[419781472,1775376646785,-300.0,0.00014245,2]
[419781474,1775376646794,-300.0,0.00014245,2]
[419781476,1775376646803,-300.0,0.00014245,2]
[419781478,1775376646812,-300.0,0.00014245,2]
[419781480,1775376646822,-300.0,0.00014245,2]
[419781482,1775376646831,-300.0,0.00014245,2]
[419781484,1775376646841,-300.0,0.00014245,2]
[419781486,1775376646850,-300.0,0.00014245,2]
[419781488,1775376646859,-300.0,0.00014245,2]
[419781490,1775376646868,-300.0,0.00014245,2]
[419781492,1775376646877,-300.0,0.00014245,2]
[419781494,1775376646886,-300.0,0.00014245,2]
[419781496,1775376646895,-600.0,0.00014529,2]
[419781498,1775376646904,-220.8419412,0.00015801,2]
[419781500,1775376646913,-720.0,0.00015982,2]
[419781501,1775376646921,-294.4559218,0.00017215,2]
[419781503,1775376646931,-1120.50365858,0.00017215,2]
[419781510,1775376646990,-1488.60884682,0.00017215,2]
[419781512,1775376646999,-187.16344516,0.0001758,2]
[419781516,1775376647028,-676.83655484,0.0001758,2]
[419781518,1775376647037,-220.8419412,0.00018121,2]
[419781520,1775376647045,-1000.0,0.00019338,2]
[419781522,1775376647054,-3400.44778798,0.00019944,2]
[419781524,1775376647063,-4325.27164803,0.00019945,2]
[419782836,1775377401673,3851.66897956,0.00031207,120]
[419782837,1775377401958,2963.6925563,0.000278,120]
[419782838,1775377404078,629.5,0.000309,120]
[419782839,1775377404358,629.5,0.000319,120]
[419782840,1775377599534,3340.62910117,0.00034821,120]
[419782841,1775377731387,225398.00317835,0.00034821,120]
[419782854,1775377797296,2500.0,0.0003287,120]
[419782855,1775377819165,1226550.26714938,0.000328,120]
[419782901,1775377836634,151.0,9e-05,2]
[419782907,1775377838907,-5000.0,0.00013562,2]
[419782908,1775377838917,-1000.0,0.00013699,2]
[419782909,1775377838926,-615.0,0.00013699,2]
[419782910,1775377838935,-300.0,0.00013832,2]
[419782911,1775377838944,-300.0,0.00013832,2]
[419782912,1775377838954,-300.0,0.00013832,2]
[419782913,1775377838963,-300.0,0.00013832,2]
[419782915,1775377838972,-300.0,0.00013832,2]